Cogmind - Beta 11 @@@ ROGUE MODE // 2022.03.27 @ 16:03:00 Player: Red Box Result: Destroyed by G-47 Trooper with Particle Gun Performance ------------- Evolutions (3) 1500 Regions Visited (6) 1200 Robots Destroyed (162) 810 Value Destroyed (4935) 4935 Prototype IDs (14) 280 Alien Tech Used (0) 0 Bonus (484) 484 TOTAL SCORE: 9209 Bonus ------- High Alert Combat Kills 348 Follower Combat Kills 221 Friendly Fire -85 Cogmind --------- Core Integrity 0/700 Matter 290/300 Energy 84/100 System Corruption 2% Temperature Cool (90) Movement Hovering (147) Ox2 Location -7/Lower Caves Parts ------- > --- POWER (1) -------- (None) > --- PROPULSION (4) --- Cooled Airjet Gyrokinetic Inverter Gyrokinetic Inverter > --- UTILITY (6) ------ Huge Storage Unit Improved Signal Interpreter Advanced Terrain Scan Processor ECM Suite Improved Propulsion Shielding > --- WEAPON (2) ------- Improved Spread Laser > --- INVENTORY (25) --- Coolant Injector High-capacity Storage Unit Core Analyzer Improved Reaction Control System Improved Propulsion Shielding Layered Light Armor Plating Reactive Plating Insulated Plating Heavy Ion Cannon Heavy Ion Cannon Heavy Ion Cannon Gauss Cannon Gauss Cannon Gauss Cannon Heavy Missile Launcher Peak State ------------ > --- POWER ------------ Deuterium Engine > --- PROPULSION ------- Gravmag System Gravmag System Linear Gravjet Linear Gravjet > --- UTILITY ---------- Huge Storage Unit Improved Signal Interpreter Advanced Terrain Scan Processor Microactuators Improved Medium Armor Plating Insulated Plating > --- WEAPON ----------- Heavy Ion Cannon Heavy Ion Cannon > --- INVENTORY -------- Enhanced Nuclear Core Cooled Airjet Gyrokinetic Inverter Gyrokinetic Inverter Linear Gravjet Coolant Injector Coolant Injector High-capacity Storage Unit Compact Battery Improved Sensor Array Improved Terrain Scanner Core Analyzer ECM Suite Improved Reaction Control System Reactive Plating Improved Spread Laser Heavy Ion Cannon Heavy Ion Cannon Heavy Ion Cannon Advanced Assault Cannon Gauss Cannon Gauss Cannon Heavy Missile Launcher Great Maul [Rating: 59] Favorites ----------- Power Cooled Ion Engine Engine Cooled Ion Engine Power Core Enhanced Nuclear Core Propulsion Gravmag System Treads Light Treads Leg Aluminum Leg Wheel Wheel Hover Unit Gravmag System Utility Huge Storage Unit Device Improved Terrain Scanner Storage Huge Storage Unit Processor Improved Signal Interpreter Hackware Hacking Suite Protection Improved Propulsion Shielding Weapon Beam Cannon Energy Gun Advanced Beam Rifle Energy Cannon Beam Cannon Ballistic Gun Assault Rifle Ballistic Cannon Improved Light Cannon Launcher Missile Launcher Impact Weapon Great Maul Slashing Weapon Axe Build | -11 -10 -10 -9 -8 -7 -7 ------- Run | Scr Mat Min Mat Mat Fac Low Slots Evolved 6 | . . . 2 2 2 . Power . | . . . . . . . Propulsion 2 | . . . 2 . . . Utility 4 | . . . . 2 2 . Weapon . | . . . . . . . Parts Attached 253 | 7 12 . 39 66 111 18 Power 15 | 1 . . 6 2 5 1 Engine 13 | 1 . . 6 2 4 . Core 2 | . . . . . 1 1 Reactor . | . . . . . . . Propulsion 66 | 2 4 . 15 18 22 5 Treads 6 | . . . 1 5 . . Leg 6 | 2 . . . 2 2 . Wheel 19 | . 4 . 14 1 . . Hover 35 | . . . . 10 20 5 Flight . | . . . . . . . Utility 90 | 2 4 . 1 14 58 11 Device 55 | 1 3 . 1 8 37 5 Storage 4 | 1 1 . . 1 1 . Processor 5 | . . . . 3 1 1 Hackware 2 | . . . . . 2 . Protection 24 | . . . . 2 17 5 Artifact . | . . . . . . . Weapon 82 | 2 4 . 17 32 26 1 Energy Gun 13 | . . . 1 4 7 1 Energy Cannon 30 | . 4 . 10 10 6 . Ballistic Gun 4 | 2 . . 1 . 1 . Ballistic Cannon 11 | . . . 2 9 . . Launcher 5 | . . . 2 1 2 . Special Weapon . | . . . . . . . Impact Weapon 18 | . . . 1 7 10 . Slashing Weapon 1 | . . . . 1 . . Piercing Weapon . | . . . . . . . Special Melee Weapon . | . . . . . . . Unidentified Prototypes 9 | . . . 3 3 3 . Parts Lost 50 | . . . 10 13 14 13 Power 6 | . . . 2 1 1 2 Propulsion 28 | . . . 6 8 9 5 Utility 8 | . . . . 2 2 4 Weapon 8 | . . . 2 2 2 2 Highest Loss Streak 10 | . . . 2 6 4 10 To Critical Strikes . | . . . . . . . Average Slot Usage (%) 98 | . 99 100 98 97 99 98 Engine 8 | . 14 14 10 8 6 6 Treads 2 | . . . . 12 . . Wheel 10 | . 23 28 42 6 . . Hover 18 | . . . . 15 28 29 Device 16 | . 14 14 11 13 20 17 Storage 8 | . 14 14 11 8 7 7 Processor 10 | . . . . 10 15 15 Protection 1 | . . . . 2 . 4 Energy Gun 2 | . . . . . 6 . Energy Cannon 10 | . 26 28 20 4 6 6 Ballistic Cannon 2 | . . . . 9 . . Impact Weapon 2 | . . . . 2 2 6 Naked Turns . | . . . . . . . Heaviest Build 119 | 14 92 92 95 105 119 112 Greatest Support 80 | 20 26 20 58 80 36 43 Greatest Overweight (x) 10 | . 4 4 3 10 4 3 Average Overweight (x) 2 | . 2 4 1 2 2 2 Largest Inventory Capacity 25 | 8 25 25 25 25 25 25 Average Capacity 24 | 7 22 25 25 24 25 25 Most Carried 25 | 8 25 25 25 25 25 25 Average Carried 23 | 5 19 24 24 24 24 24 Final Capacity 25 | 8 25 25 25 25 25 25 Final Carried 25 | 8 25 25 25 25 25 15 Class Distribution -------------------- 39% | Mutant 16% | Skirmisher 16% | Scavenger-Mutant 14% | Scavenger-Assassin 6% | Scavenger-Skirmisher 6% | Assassin Dominant Class ---------------- Mutant | -10/Materials Mutant | -10/Mines Mutant | -9/Materials Scavenger-Mutant | -8/Materials Skirmisher | -7/Factory Scavenger-Assassin | -7/Lower Caves Resources | -11 -10 -10 -9 -8 -7 -7 ----------- Run | Scr Mat Min Mat Mat Fac Low Matter Collected 3684 | 310 120 . 463 1355 1247 189 Remotely . | . . . . . . . Salvage Created 5668 | 118 422 41 1462 1564 1881 180 Parts 319 | 10 28 . 96 86 99 . Haulers Intercepted 14 | . 2 . 6 4 2 . Recyclers Shooed 1 | . . . . . 1 . Parts Field Recycled . | . . . . . . . Retrieved Matter . | . . . . . . . Parts Self-Destructed . | . . . . . . . Prevented . | . . . . . . . Kills | -11 -10 -10 -9 -8 -7 -7 ------- Run | Scr Mat Min Mat Mat Fac Low Combat Hostiles Destroyed 106 | . 6 1 29 34 31 5 Melee 1 | . . . . . . 1 Guns 11 | . . . . . 10 1 Cannons 74 | . 6 1 24 30 13 . AOE 12 | . . . 2 4 6 . Classes Destroyed 14 | 2 4 . 4 1 3 . Worker 8 | . 1 . 5 . 2 . Builder 7 | . . . 3 . 4 . Tunneler 3 | 3 . . . . . . Hauler 14 | . 2 . 6 4 2 . Recycler 9 | 1 . . . 4 4 . Operator 1 | . . . . . 1 . Watcher 14 | . 2 . 4 3 5 . Swarmer 22 | . . . 12 6 4 . Grunt 46 | . 6 1 6 20 8 5 Duelist 3 | . . . 1 1 1 . Protector 1 | . . . . . 1 . Sentry 18 | . . . 10 6 2 . Hunter 4 | . . . . 1 3 . Programmer 12 | . . . . . 12 . Best Kill Streak 8 | 2 3 1 6 4 8 3 Combat Bots Only 5 | . 2 1 5 4 4 3 Max Kills in Single Turn 5 | 1 1 1 4 2 5 1 Gunslinging . | . . . . . . . Exploded 2 | . . . 2 2 2 . Melee 1 | . . . . . . 1 Uniques/NPCs Destroyed . | . . . . . . . Combat | -11 -10 -10 -9 -8 -7 -7 -------- Run | Scr Mat Min Mat Mat Fac Low Damage Taken 7767 | . 163 18 1600 2159 2409 1418 Core 1328 | . 10 . 384 218 342 374 Absorbed by Shields . | . . . . . . . Redirected to Shielding 29 | . . . . . . 29 Regen/Repaired (Parts) 609 | . 44 . 113 240 212 . Core Remaining (%) 65 | 100 . 96 4 60 . . Volleys Fired 376 | 10 27 5 104 121 105 4 Largest 2 | 2 2 2 2 2 2 1 Hottest 150 | 40 120 120 120 138 150 75 Shots Fired 724 | 20 54 10 204 225 206 5 Gun 143 | 20 . . . 10 109 4 Cannon 575 | . 54 10 203 213 94 1 Launcher 6 | . . . 1 2 3 . Special . | . . . . . . . Kinetic 199 | 20 . . 7 167 5 . Thermal 505 | . 54 10 196 42 198 5 Explosive 6 | . . . 1 2 3 . Electromagnetic 14 | . . . . 14 . . Robot Hit Streak 14 | 4 8 2 14 14 12 4 Robot Miss Streak 8 | 2 3 2 7 4 8 1 Penetration Max . | . . . . . . . Secondary Targets 1 | . . . . . 1 . Max Gunslinging Chain 1 | . . . . . 1 . Shots Hit Robots 448 | 9 32 4 120 140 129 14 Core Hits 254 | 6 14 2 54 66 103 9 Critical Kills 3 | . . . 2 . 1 . Critical Parts Destroyed 8 | . . . . 1 2 5 Critical Strikes 19 | . . . 3 6 5 5 Burn 2 | . . . . . 2 . Meltdown 3 | . . . 2 . 1 . Blast 6 | . . . 1 5 . . Smash 8 | . . . . 1 2 5 Melee Attacks 94 | . . . 2 24 41 27 Impact 94 | . . . 2 24 41 27 Slashing . | . . . . . . . Piercing . | . . . . . . . Sneak Attacks 5 | . . . 1 2 1 1 Combat Hostiles 1 | . . . . . . 1 Follow-up Attacks . | . . . . . . . Damage Inflicted 11869 | 133 583 70 2949 3494 4073 567 Guns 1911 | 133 . . . 58 1630 90 Cannons 7310 | . 583 70 2360 2897 1400 . Explosions 1566 | . . . 543 312 711 . Melee 1082 | . . . 46 227 332 477 Ramming . | . . . . . . . Kinetic 2568 | 133 . . 144 2220 71 . Thermal 6795 | . 583 70 2507 526 3019 90 Explosive 1215 | . . . 252 312 651 . Electromagnetic 209 | . . . . 209 . . Impact 1082 | . . . 46 227 332 477 Slashing . | . . . . . . . Piercing . | . . . . . . . Highest Corruption 4 | . . . 2 . 4 2 Average Corruption 1 | . . . 2 . 1 2 Corruption Purged 4 | . . . . . 4 . Corruption Blocked . | . . . . . . . Effects 98 | . . . 22 . 58 18 Message Errors 16 | . . . 2 . 11 3 Matter Fused 32 | . . . 6 . 19 7 Heat Flow Errors 9 | . . . 3 . 5 1 Energy Discharges 14 | . . . 4 . 9 1 Data Loss (minor) 14 | . . . 4 . 7 3 Data Loss (major) 4 | . . . 1 . 2 1 Misfires 5 | . . . 1 . 3 1 Alerts 3 | . . . . . 2 1 Weapon Failures 1 | . . . 1 . . . Overload Shots . | . . . . . . . Overflow Damage 858 | . 5 . 195 193 205 260 Projectiles 72 | . 5 . 5 44 18 . Explosions 214 | . . . 164 25 25 . Melee 572 | . . . 26 124 162 260 Knockbacks 33 | . . . 1 27 . 5 Impact 6 | . . . 1 . . 5 Kinetic 24 | . . . . 24 . . Secondary 3 | . . . . 3 . . Self-Inflicted Damage 348 | . . . 175 . 173 . Shots 4 | . . . 2 . 2 . Rammed . | . . . . . . . Targets Rammed . | . . . . . . . Kicked . | . . . . . . . Crushed . | . . . . . . . Highest Temperature 457 | . 189 36 199 457 411 164 Average Temperature 87 | . 56 14 52 122 94 43 Received Heat Transfer 2625 | . 111 6 342 1080 477 609 Effects 10 | . . . . 9 1 . Shutdowns 2 | . . . . 1 1 . Energy Bleed 1 | . . . . 1 . . Interference 5 | . . . . 5 . . Matter Decay 2 | . . . . 2 . . Siege Activations . | . . . . . . . Robots Corrupted . | . . . . . . . Combat Hostiles . | . . . . . . . Parts Fried 15 | . . . 1 3 5 6 Impact Corruptions 22 | . . . 1 4 6 11 Robots Melted 4 | . . . 3 . 1 . Combat Hostiles 3 | . . . 3 . . . Parts Melted 28 | . 5 1 11 1 10 . Heat Transferred 11105 | . 1221 148 4751 1036 3869 80 Parts Sabotaged . | . . . . . . . Parts Stolen . | . . . . . . . Parts Stripped . | . . . . . . . Power Chain Reactions . | . . . . . . . Missiles Intercepted . | . . . . . . . Alert | -11 -10 -10 -9 -8 -7 -7 ------- Run | Scr Mat Min Mat Mat Fac Low Peak Influence 814 | 20 122 103 603 511 814 . Initial 232 | . 13 3 7 205 232 . Average 306 | 9 58 18 325 306 388 . Maximum Alert Level 3 | . . . 2 2 3 . Low Security (%) 34 | 100 100 100 20 28 21 . Level 1 31 | . . . 49 34 35 . Level 2 30 | . . . 30 36 38 . Level 3 2 | . . . . . 5 . Level 4 . | . . . . . . . Level 5 . | . . . . . . . High Security . | . . . . . . . Max Security . | . . . . . . . Squads Dispatched 32 | . . . 2 8 22 . Investigation 5 | . . . 1 1 3 . Extermination 11 | . . . . . 11 . Reinforcement 4 | . . . 1 1 2 . Assault 2 | . . . . . 2 . Garrison 10 | . . . . 6 4 . Intercept . | . . . . . . . Searches Triggered . | . . . . . . . Construction Impeded 1 | . . . . . 1 . Haulers Reinforced 1 | . . . . . 1 . Active Scanning Responses . | . . . . . . . Cargo Convoy Interrupts . | . . . . . . . Stealth | -11 -10 -10 -9 -8 -7 -7 --------- Run | Scr Mat Min Mat Mat Fac Low Distress Signals 9 | . 1 . 3 2 3 . Communications Jammed . | . . . . . . . Distress Signals . | . . . . . . . Times Spotted 199 | . 14 7 50 55 55 18 Peak Tracking Total 8 | . 3 2 8 5 6 6 Tactical Retreats 19 | . . 1 1 8 3 6 Traps | -11 -10 -10 -9 -8 -7 -7 ------- Run | Scr Mat Min Mat Mat Fac Low Traps Triggered 4 | . . . 2 . 2 . Indirectly . | . . . . . . . Trap Hack Attempts . | . . . . . . . Triggered . | . . . . . . . Disarmed . | . . . . . . . Reprogrammed . | . . . . . . . Reused . | . . . . . . . Traps Extracted . | . . . . . . . Installed . | . . . . . . . Triggered . | . . . . . . . Machines | -11 -10 -10 -9 -8 -7 -7 ---------- Run | Scr Mat Min Mat Mat Fac Low Machines Disabled 20 | . 2 . 7 2 9 . Max in Single Turn 4 | . 1 . 2 1 4 . Garrison Access 1 | . . . . . 1 . Machines Sabotaged . | . . . . . . . Garrisons Compromised . | . . . . . . . Overloaded Fab Kills . | . . . . . . . Hacking | -11 -10 -10 -9 -8 -7 -7 --------- Run | Scr Mat Min Mat Mat Fac Low Machines Accessed 61 | . 10 1 14 13 23 . Terminals 40 | . 7 1 10 10 12 . Fabricators 1 | . . . . . 1 . Repair Stations 7 | . 1 . 1 2 3 . Recycling Units 8 | . 2 . 2 1 3 . Scanalyzers 3 | . . . 1 . 2 . Garrison Access 2 | . . . . . 2 . Total Hacks 179 | . 31 3 50 33 62 . Successful 113 | . 20 . 37 22 34 . Failed 66 | . 11 3 13 11 28 . Catastrophic 13 | . 1 1 2 . 9 . Database Lockouts . | . . . . . . . Manual 87 | . 19 3 33 14 18 . Terminals 114 | . 21 3 34 24 32 . Fabricators 1 | . . . . . 1 . Repair Stations 30 | . 5 . 4 7 14 . Recycling Units 18 | . 5 . 6 2 5 . Scanalyzers 14 | . . . 6 . 8 . Garrison Access 2 | . . . . . 2 . Terminal Hacks 29 | . 6 . 12 5 6 . Part Schematic 2 | . . . 2 . . . Robot Schematic 1 | . . . 1 . . . Robot Analysis 7 | . 2 . 3 1 1 . Prototype ID Bank 3 | . 2 . 1 . . . Terminal Index 4 | . 1 . 1 1 1 . Alert Level 1 | . . . . 1 . . Unreport Threat 5 | . . . 2 1 2 . Locate Traps 6 | . 1 . 2 1 2 . Fabricator Hacks 1 | . . . . . 1 . Build 1 | . . . . . 1 . Repair Station Hacks 23 | . 4 . 4 6 9 . Scan Component 12 | . 2 . 2 3 5 . Repair 11 | . 2 . 2 3 4 . Recycling Unit Hacks 7 | . 2 . 1 1 3 . Retrieve Components 7 | . 2 . 1 1 3 . Scanalyzer 13 | . . . 6 . 7 . Insert Component 6 | . . . 3 . 3 . Analyze 7 | . . . 3 . 4 . Garrison Access Hacks 1 | . . . . . 1 . Seal Access 1 | . . . . . 1 . Unauthorized Hacks 39 | . 8 . 14 10 7 . Terminals 34 | . 7 . 12 9 6 . Track 6 | . 2 . 2 2 . . Assimilate 7 | . . . 3 2 2 . Botnet 15 | . 4 . 5 4 2 . Disrupt 1 | . . . 1 . . . Operators 5 | . 1 . 1 1 2 . Fabricators . | . . . . . . . Repair Stations . | . . . . . . . Recycling Units 4 | . 1 . 2 1 . . Reject 4 | . 1 . 2 1 . . Scanalyzers . | . . . . . . . Garrison Access 1 | . . . . . 1 . Reprogram 1 | . . . . . 1 . Data Cores Recovered . | . . . . . . . Used . | . . . . . . . Hacking Detections 54 | . 10 1 13 9 21 . Full Trace Events 3 | . . . . 1 2 . Feedback Events . | . . . . . . . Feedback Blocked . | . . . . . . . Robot Schematics Acquired 1 | . . . 1 . . . Robots Built . | . . . . . . . Authchips . | . . . . . . . Time . | . . . . . . . Total Robot Build Rating . | . . . . . . . Part Schematics Acquired 8 | . . . 5 . 3 . Parts Built 2 | . . . . . 2 . Authchips . | . . . . . . . Time 53 | . . . . . 53 . Total Part Build Rating 12 | . . . . . 12 . Parts Repaired 11 | . 2 . 2 3 4 . Time 350 | . 52 . 62 95 141 . Parts Recycled . | . . . . . . . Recycled Matter . | . . . . . . . Retrieved Matter . | . . . . . . . Retrieved Components 35 | . 12 . 9 10 4 . Parts Scanalyzed 6 | . . . 3 . 3 . Part Schematics Acquired 6 | . . . 3 . 3 . Parts Damaged 1 | . . . . . 1 . Bothacking | -11 -10 -10 -9 -8 -7 -7 ------------ Run | Scr Mat Min Mat Mat Fac Low Used RIF Installer . | . . . . . . . Robots Hacked . | . . . . . . . Non-combat . | . . . . . . . Combat . | . . . . . . . Robot Hacks Applied . | . . . . . . . Relay Couplers Released . | . . . . . . . Fabnet Peak Effective % . | . . . . . . . Robots Rewired . | . . . . . . . Allies Hacked . | . . . . . . . Hacks Repelled . | . . . . . . . Allies | -11 -10 -10 -9 -8 -7 -7 -------- Run | Scr Mat Min Mat Mat Fac Low Total Allies 8 | . . 1 2 1 4 . Largest Group 3 | . . 1 2 1 3 . Highest-Rated Group 48 | . . 31 31 10 48 . Highest-Rated Ally 31 | . . 31 31 10 26 . Total Orders 5 | . . . 2 3 . . STAY 3 | . . . 1 2 . . FOLLOW 2 | . . . 1 1 . . Ally Attacks 31 | . . 11 5 . 15 . Total Damage 464 | . . 165 42 . 257 . Kills 8 | . . 3 1 . 4 . Allies Corrupted . | . . . . . . . Allies Melted . | . . . . . . . Intel | -11 -10 -10 -9 -8 -7 -7 ------- Run | Scr Mat Min Mat Mat Fac Low Robot Analysis Total 7 | . 2 . 3 1 1 . Derelict Logs Recovered 4 | . . 1 . . . 3 Drone Launches . | . . . . . . . Drone Recoveries . | . . . . . . . Exploration | -11 -10 -10 -9 -8 -7 -7 ------------- Run | Scr Mat Min Mat Mat Fac Low Turns Passed 17275 | 161 1321 882 2369 3433 7211 1898 Spaces Moved 7705 | 93 818 565 1512 1113 2895 709 Core 8 | 8 . . . . . . Treads 447 | . . . . 447 . . Legs 249 | 85 164 . . . . . Wheels 3087 | . 654 565 1512 356 . . Hover 3914 | . . . . 310 2895 709 Flight . | . . . . . . . Fastest Speed 48 | 50 120 140 100 48 160 147 Average Speed 174 | 113 132 140 113 224 207 178 Slowest Speed 480 | 120 140 140 135 480 306 248 Overloaded Moves 14 | . . . . . . 14 Propulsion Burnouts . | . . . . . . . Robots Hopped . | . . . . . . . Cave-ins Triggered . | . . . . . . . Exploration Rate (%) 70 | 6 97 99 98 75 59 60 Regions Visited 6 Branch Regions 2 Pre-discovered Areas 2 | . . 1 . . . 1 Known Exits Taken 2 | . . . . 1 1 . Unknown Exits Taken 4 | 1 1 1 1 . . . Scrap Searched 11 | . . 3 . . . 8 Spaces Dug 63 | . . . 1 17 33 12 Terrain Destroyed 272 | . . . 40 41 179 12 Melee 63 | . . . 1 17 33 12 Projectile 16 | . . . . 5 11 . AOE 193 | . . . 39 19 135 . Terrain Rammed . | . . . . . . . Walls Destroyed . | . . . . . . . Machines Disabled . | . . . . . . . Actions | -11 -10 -10 -9 -8 -7 -7 --------- Run | Scr Mat Min Mat Mat Fac Low Total 10595 | 131 1001 647 1958 1779 3794 1285 Wait 1842 | . 102 72 254 358 538 518 Move 7699 | 92 817 564 1511 1112 2894 709 Hop . | . . . . . . . Pick Up 194 | 18 27 3 24 60 58 4 Fast Attach 37 | 1 5 . 9 14 7 1 Attach 72 | 6 . . 12 19 24 11 Detach 2 | . . . 1 1 . . Swap 144 | . 7 . 18 33 80 6 Drop 135 | 4 16 3 23 37 47 5 Fire 376 | 10 27 5 104 121 105 4 Melee 94 | . . . 2 24 41 27 Ram . | . . . . . . . Kick . | . . . . . . . Crush . | . . . . . . . Escape Stasis . | . . . . . . . Rewire . | . . . . . . . Trap . | . . . . . . . Miscellaneous . | . . . . . . . Route ------- -11/Scrapyard -10/Materials (discovered 4 exits: *Mat x3 / *Min) -10/Mines (discovered 2 exits: *Mat x2) -9/Materials (discovered 5 exits: *Mat x3 / [*Min] / [*Sto]) -8/Materials (discovered 2 exits: *Fac x2) -7/Factory (discovered 4 exits: *Fac x2 / *Low x2) -7/Lower Caves History --------- Turn | Location | Event 6 | -11/Scrapyard | Discovered new exit (range 14) 162 | -11/Scrapyard | Entered Materials 171 | -10/Materials | Discovered new exit (range 16) 298 | -10/Materials | Discovered new exit (range 13) 315 | -10/Materials | Build established: Mutant 957 | -10/Materials | Discovered new exit (range 5) 1196 | -10/Materials | Discovered new exit (range 16) 1347 | -10/Materials | Repaired Beam Cannon 1374 | -10/Materials | Repaired Beam Cannon 1483 | -10/Materials | Entered Mines 1490 | -10/Mines | Escorted by a lone wolf Derelict 1510 | -10/Mines | Learned location of Storage (-9) 1562 | -10/Mines | Learned Materials garrison access intel 1610 | -10/Mines | Discovered new exit (range 10) 1687 | -10/Mines | Discovered new exit (range 10) 2365 | -10/Mines | Entered Materials 2365 | -9/Materials | Accompanied by 1 ally 2365 | -9/Materials | Evolved 2 slots: Propulsion x2 2872 | -9/Materials | Discovered new exit (range 16) 3424 | -9/Materials | Discovered new exit (range 8) 3476 | -9/Materials | Core integrity fell below 50% 3736 | -9/Materials | Repaired Beam Cannon 3773 | -9/Materials | Repaired Broken Beam Cannon 4086 | -9/Materials | Discovered new exit (range 3) 4154 | -9/Materials | Discovered new exit (range 7) 4314 | -9/Materials | Core integrity fell below 20% 4375 | -9/Materials | Discovered new exit (range 15) 4734 | -9/Materials | Entered another Materials area 4734 | -8/Materials | Accompanied by 1 ally 4734 | -8/Materials | Evolved 2 slots: Utility x2 4735 | -8/Materials | Loaded intel: 1 garrison access location 4924 | -8/Materials | Build established: Scavenger-Mutant 5260 | -8/Materials | Lost 6 parts (3n1u2w) 6246 | -8/Materials | Garrison activated, responded to threat 6611 | -8/Materials | Discovered new exit (range 15) 6627 | -8/Materials | Repaired Imp. Light Cannon 6666 | -8/Materials | Repaired Imp. Heat Sink 7057 | -8/Materials | Garrison activated, responded to threat 7418 | -8/Materials | Build established: Mutant 7733 | -8/Materials | Discovered new exit (range 15) 8093 | -8/Materials | Repaired Cld. Ion Engine 8163 | -8/Materials | Identified exit to Factory 8167 | -8/Materials | Entered Factory 8167 | -7/Factory | Accompanied by 1 ally 8167 | -7/Factory | Evolved 2 slots: Utility x2 8598 | -7/Factory | Discovered new exit (range 16) 8710 | -7/Factory | Discovered new exit (range 10) 8732 | -7/Factory | Build established: Skirmisher 8740 | -7/Factory | Identified exit to Lower Caves 9166 | -7/Factory | Lost 4 parts (3n1u) 9395 | -7/Factory | Build established: Mutant 10815 | -7/Factory | Build established: Assassin 11352 | -7/Factory | Build established: Skirmisher 11673 | -7/Factory | Fabricated Gyrokinetic Inverter (x2) 12062 | -7/Factory | Discovered new exit (range 14) 12083 | -7/Factory | Identified exit to Factory 12547 | -7/Factory | Repaired Insulated Plating 13199 | -7/Factory | Discovered exit to Factory (range 5) 13280 | -7/Factory | Repaired Gravmag System 13350 | -7/Factory | Build established: Scavenger-Skirmisher 14131 | -7/Factory | Build established: Scavenger-Assassin 14567 | -7/Factory | First assault squad dispatched 14717 | -7/Factory | Garrison activated, responded to threat 14755 | -7/Factory | Build established: Scavenger-Skirmisher 14869 | -7/Factory | Repaired Gravmag System 14926 | -7/Factory | Repaired Linear Gravjet 15131 | -7/Factory | Garrison activated, responded to threat 15360 | -7/Factory | Build established: Scavenger-Mutant 15378 | -7/Factory | Entered Lower Caves 15640 | -7/Lower Caves | Learned Factory interactive machine intel 15666 | -7/Lower Caves | Build established: Scavenger-Assassin 16944 | -7/Lower Caves | Learned location of Extension (-6) 17131 | -7/Lower Caves | Core integrity fell below 50% 17139 | -7/Lower Caves | Spotted B-75 Beast 17207 | -7/Lower Caves | Core integrity fell below 20% 17217 | -7/Lower Caves | Lost 10 parts (1p5n3u1w) 17276 | -7/Lower Caves | Destroyed by G-47 Trooper with Particle Gun Last Messages --------------- 17254_ Destroyed Lgt. Nuclear Core. 17254_ G-47 Trooper system corrupted by crushing effect. 17254_ G-47 Trooper IFF system glitched. 17255_ G-47 Trooper system terminally corrupted. 17255_ Particle Gun fried. 17255_ Imp. Heat Sink fried. 17255_ Enh. Nuclear Core destroyed. 17260_ Sneak attack on G-47 Trooper. 17260_ Destroyed Imp. Heat Sink. 17260_ Destroyed Lgt. Nuclear Core. 17260_ G-47 Trooper system corrupted by crushing effect. 17260_ G-47 Trooper destroyed. 17263_ G-47 Trooper suffers critical hit (Smash). 17263_ Destroyed Imp. Heat Sink. 17263_ G-47 Trooper system corrupted by crushing effect. 17265_ Great Maul destroyed. 17273_ Particle Gun fried. 17273_ G-47 Trooper destroyed. 17275_ Dropped Com. Battery. 17276_ Extracted 88 energy. Map ----- +----------------------------------------------------+ | ????????????#?#???#?#?#??????????????????????????? | | ????????????##?##?###?##?????????????????????????? | | ????????##?#??#?##?######????????????????????????? | | ????????###?#??#??####???##??????????????????????? | | ??????#?# ######?##???#?# ????????????????????? | | ????? ? ?##?##??##?###### ? ???????????????????? | | ????##? ?? ?##### #### ?##??????????????????? | | ?????##?# ##"#" ?### ?######???????????????? | | ????#?? ####?# ??????????????? | | ??? ? ?? # ??? ?? ????????????? | | ??#### ? #"## #?## # ? ??????#?????????? | | ??#?# # # #### # ? ??##????????? | | ?????## ### ? ## ??????????? | | ????### ##### #####" ?# #????????? | | ???#### #?### #####" ### ?#? ??#??????? | | ?? ###### ##### ""### ??#? ##?#? ???? | | ??##?## ####### #### ""############ #####????? | | ??##### ??##### BB ### ########### ?????? | | ??##### ?###### BB ### %% %####### ?????? | | ???#### ####### ;## % %% ##### ####?#???? | | ??##### ####### #"#=% #### ##?#?#???? | | ##?"### ###### ### ###?#???#? | | ???""## ### ### % % % ####?#?###?? | | ??#"""# ### ;### ##### % ########### | | ???" # # " ## #g ###### ###### | | ??? ? #% ##" ""###@#% ####### ##### | | ?? # "" ### #### ####### # # | | ?? ??# #### # # ####### # ### ### | | ????## #### ## ####### ? ?" ? # | | ?? % ##"### ## ??# #" # | | ? %% ## ###### ?" # | | ?? #" ## ######?#" ## | | ?? ### ######## ###### #" # | | ?? ??### ### ######## ###### #""""""# | | ??? ????######### ######## ###### ######## | | ?????? ?########## ######### ###### ? | | ???????##?######## ########## #####?######### | | ????#??########### ########## ####?########### | | ??????#?##?##### #### ######?######### | | ??????#?############ #### ################ | | ???????#?################# #### #####?########## | | ????????################## #### #####?############ | | ?????????################# #### #####?############ | | ???????################## #### ################## | | ????????################# ######?########### | | ???????############## ## ################# | | ???????############## ################# | | ???????############## ######### ## # # | | ???????############## ######### " " ## # # | | ??????############### ## ######## " " ### ## | +----------------------------------------------------+ Best States ------------- Heat Dissipation 61 Coolant Potential 65 Energy Generation 23 Energy Capacity 300 Matter Stores 300 Matter Capacity 300 Sight Range 16 Robot Scan Range 15 Terrain Scan Range 16 Terrain Scan Density 410 ECM Strength 1 Armor Coverage 375 Resistance: KI 20 Resistance: EM 15 Propulsion Shielding 66 Melee Speed Boost 20 Evasion (%) 55 Targeting Accuracy 6 Recoil Reduction 4 Offensive Hacking 10 Defensive Hacking 10 Item Schematics ----------------- Imp. Terrain Scanner | -9/Materials | Scanalyzed Cld. Ion Engine | -9/Materials | Scanalyzed Hvy. Mace | -9/Materials | Scanalyzed Imp. Hover Unit | -9/Materials | Hacked Hcp. Storage Unit | -9/Materials | Hacked Aerolev Unit | -7/Factory | Scanalyzed Cld. Airjet | -7/Factory | Scanalyzed Imp. Cooling System | -7/Factory | Scanalyzed Robot Schematics ------------------ O-16 Technician | -9/Materials | Hacked Fabricated ------------ Gyrokinetic Inverter | x2 | -7/Factory | Preloaded Alien Tech Used ----------------- None Achievements -------------- None Challenges ------------ None Game ------ Seed AssembledDefenseExpander Manual? 0 Play Time 03:11:31 Cumulative 197.4 hours Start 2022.03.27 @ 01:21:14 End 2022.03.27 @ 16:03:00 Sessions 3 Manual Loads 0 Difficulty Rogue Special Mode None Game No. 181 Rogue 181 Adventurer 0 Explorer 0 Win Type - Total 0 Types 0/0/0/0/0/0/0/0/0 Lore% 41 Gallery% 48 Achievement% 36 Wizard Run 0 Options --------- ASCII 0 Keyboard 0 Movement Mouse Keybinds 0 Fullscreen 1 Font 16/SmallcapsGlow Map View 75x55 Tactical HUD 1 Map Filters NONE Filters NONE Steam 1 RUN: 40f29a77-a601-47fc-94d5-b139b1d2e1f8